Workbook

Sheet Sheet1
A2: Wire size >> | C2: #18 | E2: #16 | G2: #14 | I2: #12 | K2: #10
A3: ohms / ft >> | C3: 0.00808 | E3: 0.00508 | G3: 0.00319 | I3: 0.00201 | K3: 0.00126
A5: Entries | E5: Formula | F5: VD = 2 x L x R x I
D6: L= | E6: Length of lead one way
A7: Wire resistance | C7: 0.00201 | D7: R= | E7: Resistance factor in ohms per foot
A8: (copy from above) | C8: ↗ | D8: I= | E8: Load current in amps
A9: Enter voltage | C9: 115 | F9: OK
F10: Caution
F11: NO
A12: Wire length one way> | C12: 50 | D12: 75 | E12: 100 | F12: 125 | G12: 150 | H12: 175 | I12: 200 | J12: 250 | K12: 300 | L12: 350 | M12: 400 | N12: 450
B13: Amps
B14: 1 | C14: =($U69/$C$9) -> 0.001747826087 | D14: =($V69/$C$9) -> 0.00262173913 | E14: =($W69/$C$9) -> 0.003495652174 | F14: =($X69/$C$9) -> 0.004369565217 | G14: =($Y69/$C$9) -> 0.005243478261 | H14: =($Z69/$C$9) -> 0.006117391304 | I14: =($AA69/$C$9) -> 0.006991304348 | J14: =($AB69/$C$9) -> 0.008739130435 | K14: =($AC69/$C$9) -> 0.01048695652 | L14: =($AD69/$C$9) -> 0.01223478261 | M14: =($AE69/$C$9) -> 0.0139826087 | N14: =($AF69/$C$9) -> 0.01573043478
B15: 2 | C15: 0.003495652174 | D15: 0.005243478261 | E15: 0.006991304348 | F15: 0.008739130435 | G15: 0.01048695652 | H15: 0.01223478261 | I15: 0.0139826087 | J15: 0.01747826087 | K15: 0.02097391304 | L15: 0.02446956522 | M15: 0.02796521739 | N15: 0.03146086957
B16: 3 | C16: 0.005243478261 | D16: 0.007865217391 | E16: 0.01048695652 | F16: 0.01310869565 | G16: 0.01573043478 | H16: 0.01835217391 | I16: 0.02097391304 | J16: 0.0262173913 | K16: 0.03146086957 | L16: 0.03670434783 | M16: 0.04194782609 | N16: 0.04719130435
B17: 4 | C17: 0.006991304348 | D17: 0.01048695652 | E17: 0.0139826087 | F17: 0.01747826087 | G17: 0.02097391304 | H17: 0.02446956522 | I17: 0.02796521739 | J17: 0.03495652174 | K17: 0.04194782609 | L17: 0.04893913043 | M17: 0.05593043478 | N17: 0.06292173913
B18: 5 | C18: 0.008739130435 | D18: 0.01310869565 | E18: 0.01747826087 | F18: 0.02184782609 | G18: 0.0262173913 | H18: 0.03058695652 | I18: 0.03495652174 | J18: 0.04369565217 | K18: 0.05243478261 | L18: 0.06117391304 | M18: 0.06991304348 | N18: 0.07865217391
B19: 6 | C19: 0.01048695652 | D19: 0.01573043478 | E19: 0.02097391304 | F19: 0.0262173913 | G19: 0.03146086957 | H19: 0.03670434783 | I19: 0.04194782609 | J19: 0.05243478261 | K19: 0.06292173913 | L19: 0.07340869565 | M19: 0.08389565217 | N19: 0.0943826087
B20: 7 | C20: 0.01223478261 | D20: 0.01835217391 | E20: 0.02446956522 | F20: 0.03058695652 | G20: 0.03670434783 | H20: 0.04282173913 | I20: 0.04893913043 | J20: 0.06117391304 | K20: 0.07340869565 | L20: 0.08564347826 | M20: 0.09787826087 | N20: 0.1101130435
B21: 8 | C21: 0.0139826087 | D21: 0.02097391304 | E21: 0.02796521739 | F21: 0.03495652174 | G21: 0.04194782609 | H21: 0.04893913043 | I21: 0.05593043478 | J21: 0.06991304348 | K21: 0.08389565217 | L21: 0.09787826087 | M21: 0.1118608696 | N21: 0.1258434783
B22: 9 | C22: 0.01573043478 | D22: 0.02359565217 | E22: 0.03146086957 | F22: 0.03932608696 | G22: 0.04719130435 | H22: 0.05505652174 | I22: 0.06292173913 | J22: 0.07865217391 | K22: 0.0943826087 | L22: 0.1101130435 | M22: 0.1258434783 | N22: 0.141573913
B23: 10 | C23: 0.01747826087 | D23: 0.0262173913 | E23: 0.03495652174 | F23: 0.04369565217 | G23: 0.05243478261 | H23: 0.06117391304 | I23: 0.06991304348 | J23: 0.08739130435 | K23: 0.1048695652 | L23: 0.1223478261 | M23: 0.139826087 | N23: 0.1573043478
B24: 11 | C24: 0.01922608696 | D24: 0.02883913043 | E24: 0.03845217391 | F24: 0.04806521739 | G24: 0.05767826087 | H24: 0.06729130435 | I24: 0.07690434783 | J24: 0.09613043478 | K24: 0.1153565217 | L24: 0.1345826087 | M24: 0.1538086957 | N24: 0.1730347826
B25: 12 | C25: 0.02097391304 | D25: 0.03146086957 | E25: 0.04194782609 | F25: 0.05243478261 | G25: 0.06292173913 | H25: 0.07340869565 | I25: 0.08389565217 | J25: 0.1048695652 | K25: 0.1258434783 | L25: 0.1468173913 | M25: 0.1677913043 | N25: 0.1887652174
B26: 13 | C26: 0.02272173913 | D26: 0.0340826087 | E26: 0.04544347826 | F26: 0.05680434783 | G26: 0.06816521739 | H26: 0.07952608696 | I26: 0.09088695652 | J26: 0.1136086957 | K26: 0.1363304348 | L26: 0.1590521739 | M26: 0.181773913 | N26: 0.2044956522
B27: 14 | C27: 0.02446956522 | D27: 0.03670434783 | E27: 0.04893913043 | F27: 0.06117391304 | G27: 0.07340869565 | H27: 0.08564347826 | I27: 0.09787826087 | J27: 0.1223478261 | K27: 0.1468173913 | L27: 0.1712869565 | M27: 0.1957565217 | N27: 0.220226087
B28: 15 | C28: 0.0262173913 | D28: 0.03932608696 | E28: 0.05243478261 | F28: 0.06554347826 | G28: 0.07865217391 | H28: 0.09176086957 | I28: 0.1048695652 | J28: 0.1310869565 | K28: 0.1573043478 | L28: 0.1835217391 | M28: 0.2097391304 | N28: 0.2359565217
B29: 16 | C29: 0.02796521739 | D29: 0.04194782609 | E29: 0.05593043478 | F29: 0.06991304348 | G29: 0.08389565217 | H29: 0.09787826087 | I29: 0.1118608696 | J29: 0.139826087 | K29: 0.1677913043 | L29: 0.1957565217 | M29: 0.2237217391 | N29: 0.2516869565
B30: 17 | C30: 0.02971304348 | D30: 0.04456956522 | E30: 0.05942608696 | F30: 0.0742826087 | G30: 0.08913913043 | H30: 0.1039956522 | I30: 0.1188521739 | J30: 0.1485652174 | K30: 0.1782782609 | L30: 0.2079913043 | M30: 0.2377043478 | N30: 0.2674173913
B31: 18 | C31: 0.03146086957 | D31: 0.04719130435 | E31: 0.06292173913 | F31: 0.07865217391 | G31: 0.0943826087 | H31: 0.1101130435 | I31: 0.1258434783 | J31: 0.1573043478 | K31: 0.1887652174 | L31: 0.220226087 | M31: 0.2516869565 | N31: 0.2831478261
B32: 19 | C32: 0.03320869565 | D32: 0.04981304348 | E32: 0.0664173913 | F32: 0.08302173913 | G32: 0.09962608696 | H32: 0.1162304348 | I32: 0.1328347826 | J32: 0.1660434783 | K32: 0.1992521739 | L32: 0.2324608696 | M32: 0.2656695652 | N32: 0.2988782609
B33: 20 | C33: 0.03495652174 | D33: 0.05243478261 | E33: 0.06991304348 | F33: 0.08739130435 | G33: 0.1048695652 | H33: 0.1223478261 | I33: 0.139826087 | J33: 0.1747826087 | K33: 0.2097391304 | L33: 0.2446956522 | M33: 0.2796521739 | N33: 0.3146086957
U45: 170 | W45: 180 | Y45: 190 | AA45: 200 | AC45: 210 | AE45: 220 | AG45: 230 | AI45: 240 | AK45: 250 | AM45: 260 | AO45: 270 | AQ45: 280 | AS45: 290 | AU45: 300 | AW45: 310 | AY45: 320 | BA45: 330 | BC45: 340 | BE45: 350 | BG45: 360 | BI45: 370 | BK45: 380 | BM45: 390 | BO45: 400 | BQ45: 410 | BS45: 420 | BU45: 430 | BW45: 440 | BY45: 450 | CA45: 460 | CC45: 470 | CE45: 480 | CG45: 490 | CI45: 500
U47: =2*U$45*$C$7*$B14 -> 0.6834 | V47: =($U47/$C$9) -> 0.005942608696 | W47: =2*W$45*$C$7*$B14 -> 0.7236 | X47: =($W47/$C$9) -> 0.006292173913 | Y47: =2*Y$45*$C$7*$B14 -> 0.7638 | Z47: =($Y47/$C$9) -> 0.00664173913 | AA47: =2*AA$45*$C$7*$B14 -> 0.804 | AB47: =($AA47/$C$9) -> 0.006991304348 | AC47: =2*AC$45*$C$7*$B14 -> 0.8442 | AD47: =($AC47/$C$9) -> 0.007340869565 | AE47: =2*AE$45*$C$7*$B14 -> 0.8844 | AF47: =($AE47/$C$9) -> 0.007690434783 | AG47: =2*AG$45*$C$7*$B14 -> 0.9246 | AH47: =($AG47/$C$9) -> 0.00804 | AI47: =2*AI$45*$C$7*$B14 -> 0.9648 | AJ47: =($AI47/$C$9) -> 0.008389565217 | AK47: =2*AK$45*$C$7*$B14 -> 1.005 | AL47: =($AK47/$C$9) -> 0.008739130435 | AM47: =2*AM$45*$C$7*$B14 -> 1.0452 | AN47: =($AM47/$C$9) -> 0.009088695652 | AO47: =2*AO$45*$C$7*$B14 -> 1.0854 | AP47: =($AO47/$C$9) -> 0.00943826087 | AQ47: =2*AQ$45*$C$7*$B14 -> 1.1256 | AR47: =($AQ47/$C$9) -> 0.009787826087 | AS47: =2*AS$45*$C$7*$B14 -> 1.1658 | AT47: =($AS47/$C$9) -> 0.0101373913 | AU47: =2*AU$45*$C$7*$B14 -> 1.206 | AV47: =($AU47/$C$9) -> 0.01048695652 | AW47: =2*AW$45*$C$7*$B14 -> 1.2462 | AX47: =($AW47/$C$9) -> 0.01083652174 | AY47: =2*AY$45*$C$7*$B14 -> 1.2864 | AZ47: =($AY47/$C$9) -> 0.01118608696 | BA47: =2*BA$45*$C$7*$B14 -> 1.3266 | BB47: =($BA47/$C$9) -> 0.01153565217 | BC47: =2*BC$45*$C$7*$B14 -> 1.3668 | BD47: =($BC47/$C$9) -> 0.01188521739 | BE47: =2*BE$45*$C$7*$B14 -> 1.407 | BF47: =($BE47/$C$9) -> 0.01223478261 | BG47: =2*BG$45*$C$7*$B14 -> 1.4472 | BH47: =($BG47/$C$9) -> 0.01258434783 | BI47: =2*BI$45*$C$7*$B14 -> 1.4874 | BJ47: =($BI47/$C$9) -> 0.01293391304 | BK47: =2*BK$45*$C$7*$B14 -> 1.5276 | BL47: =($BK47/$C$9) -> 0.01328347826 | BM47: =2*BM$45*$C$7*$B14 -> 1.5678 | BN47: =($BM47/$C$9) -> 0.01363304348 | BO47: =2*BO$45*$C$7*$B14 -> 1.608 | BP47: =($BO47/$C$9) -> 0.0139826087 | BQ47: =2*BQ$45*$C$7*$B14 -> 1.6482 | BR47: =($BQ47/$C$9) -> 0.01433217391 | BS47: =2*BS$45*$C$7*$B14 -> 1.6884 | BT47: =($BS47/$C$9) -> 0.01468173913 | BU47: =2*BU$45*$C$7*$B14 -> 1.7286 | BV47: =($BU47/$C$9) -> 0.01503130435 | BW47: =2*BW$45*$C$7*$B14 -> 1.7688 | BX47: =($BW47/$C$9) -> 0.01538086957 | BY47: =2*BY$45*$C$7*$B14 -> 1.809 | BZ47: =($BY47/$C$9) -> 0.01573043478 | CA47: =2*CA$45*$C$7*$B14 -> 1.8492 | CB47: =($CA47/$C$9) -> 0.01608 | CC47: =2*CC$45*$C$7*$B14 -> 1.8894 | CD47: =($CC47/$C$9) -> 0.01642956522 | CE47: =2*CE$45*$C$7*$B14 -> 1.9296 | CF47: =($CE47/$C$9) -> 0.01677913043 | CG47: =2*CG$45*$C$7*$B14 -> 1.9698 | CH47: =($CG47/$C$9) -> 0.01712869565 | CI47: =2*CI$45*$C$7*$B14 -> 2.01 | CJ47: =($CI47/$C$9) -> 0.01747826087
U48: 1.3668 | V48: 0.01188521739 | W48: 1.4472 | X48: 0.01258434783 | Y48: 1.5276 | Z48: 0.01328347826 | AA48: 1.608 | AB48: 0.0139826087 | AC48: 1.6884 | AD48: 0.01468173913 | AE48: 1.7688 | AF48: 0.01538086957 | AG48: 1.8492 | AH48: 0.01608 | AI48: 1.9296 | AJ48: 0.01677913043 | AK48: 2.01 | AL48: 0.01747826087 | AM48: 2.0904 | AN48: 0.0181773913 | AO48: 2.1708 | AP48: 0.01887652174 | AQ48: 2.2512 | AR48: 0.01957565217 | AS48: 2.3316 | AT48: 0.02027478261 | AU48: 2.412 | AV48: 0.02097391304 | AW48: 2.4924 | AX48: 0.02167304348 | AY48: 2.5728 | AZ48: 0.02237217391 | BA48: 2.6532 | BB48: 0.02307130435 | BC48: 2.7336 | BD48: 0.02377043478 | BE48: 2.814 | BF48: 0.02446956522 | BG48: 2.8944 | BH48: 0.02516869565 | BI48: 2.9748 | BJ48: 0.02586782609 | BK48: 3.0552 | BL48: 0.02656695652 | BM48: 3.1356 | BN48: 0.02726608696 | BO48: 3.216 | BP48: 0.02796521739 | BQ48: 3.2964 | BR48: 0.02866434783 | BS48: 3.3768 | BT48: 0.02936347826 | BU48: 3.4572 | BV48: 0.0300626087 | BW48: 3.5376 | BX48: 0.03076173913 | BY48: 3.618 | BZ48: 0.03146086957 | CA48: 3.6984 | CB48: 0.03216 | CC48: 3.7788 | CD48: 0.03285913043 | CE48: 3.8592 | CF48: 0.03355826087 | CG48: 3.9396 | CH48: 0.0342573913 | CI48: 4.02 | CJ48: 0.03495652174
U49: 2.0502 | V49: 0.01782782609 | W49: 2.1708 | X49: 0.01887652174 | Y49: 2.2914 | Z49: 0.01992521739 | AA49: 2.412 | AB49: 0.02097391304 | AC49: 2.5326 | AD49: 0.0220226087 | AE49: 2.6532 | AF49: 0.02307130435 | AG49: 2.7738 | AH49: 0.02412 | AI49: 2.8944 | AJ49: 0.02516869565 | AK49: 3.015 | AL49: 0.0262173913 | AM49: 3.1356 | AN49: 0.02726608696 | AO49: 3.2562 | AP49: 0.02831478261 | AQ49: 3.3768 | AR49: 0.02936347826 | AS49: 3.4974 | AT49: 0.03041217391 | AU49: 3.618 | AV49: 0.03146086957 | AW49: 3.7386 | AX49: 0.03250956522 | AY49: 3.8592 | AZ49: 0.03355826087 | BA49: 3.9798 | BB49: 0.03460695652 | BC49: 4.1004 | BD49: 0.03565565217 | BE49: 4.221 | BF49: 0.03670434783 | BG49: 4.3416 | BH49: 0.03775304348 | BI49: 4.4622 | BJ49: 0.03880173913 | BK49: 4.5828 | BL49: 0.03985043478 | BM49: 4.7034 | BN49: 0.04089913043 | BO49: 4.824 | BP49: 0.04194782609 | BQ49: 4.9446 | BR49: 0.04299652174 | BS49: 5.0652 | BT49: 0.04404521739 | BU49: 5.1858 | BV49: 0.04509391304 | BW49: 5.3064 | BX49: 0.0461426087 | BY49: 5.427 | BZ49: 0.04719130435 | CA49: 5.5476 | CB49: 0.04824 | CC49: 5.6682 | CD49: 0.04928869565 | CE49: 5.7888 | CF49: 0.0503373913 | CG49: 5.9094 | CH49: 0.05138608696 | CI49: 6.03 | CJ49: 0.05243478261
U50: 2.7336 | V50: 0.02377043478 | W50: 2.8944 | X50: 0.02516869565 | Y50: 3.0552 | Z50: 0.02656695652 | AA50: 3.216 | AB50: 0.02796521739 | AC50: 3.3768 | AD50: 0.02936347826 | AE50: 3.5376 | AF50: 0.03076173913 | AG50: 3.6984 | AH50: 0.03216 | AI50: 3.8592 | AJ50: 0.03355826087 | AK50: 4.02 | AL50: 0.03495652174 | AM50: 4.1808 | AN50: 0.03635478261 | AO50: 4.3416 | AP50: 0.03775304348 | AQ50: 4.5024 | AR50: 0.03915130435 | AS50: 4.6632 | AT50: 0.04054956522 | AU50: 4.824 | AV50: 0.04194782609 | AW50: 4.9848 | AX50: 0.04334608696 | AY50: 5.1456 | AZ50: 0.04474434783 | BA50: 5.3064 | BB50: 0.0461426087 | BC50: 5.4672 | BD50: 0.04754086957 | BE50: 5.628 | BF50: 0.04893913043 | BG50: 5.7888 | BH50: 0.0503373913 | BI50: 5.9496 | BJ50: 0.05173565217 | BK50: 6.1104 | BL50: 0.05313391304 | BM50: 6.2712 | BN50: 0.05453217391 | BO50: 6.432 | BP50: 0.05593043478 | BQ50: 6.5928 | BR50: 0.05732869565 | BS50: 6.7536 | BT50: 0.05872695652 | BU50: 6.9144 | BV50: 0.06012521739 | BW50: 7.0752 | BX50: 0.06152347826 | BY50: 7.236 | BZ50: 0.06292173913 | CA50: 7.3968 | CB50: 0.06432 | CC50: 7.5576 | CD50: 0.06571826087 | CE50: 7.7184 | CF50: 0.06711652174 | CG50: 7.8792 | CH50: 0.06851478261 | CI50: 8.04 | CJ50: 0.06991304348
U51: 3.417 | V51: 0.02971304348 | W51: 3.618 | X51: 0.03146086957 | Y51: 3.819 | Z51: 0.03320869565 | AA51: 4.02 | AB51: 0.03495652174 | AC51: 4.221 | AD51: 0.03670434783 | AE51: 4.422 | AF51: 0.03845217391 | AG51: 4.623 | AH51: 0.0402 | AI51: 4.824 | AJ51: 0.04194782609 | AK51: 5.025 | AL51: 0.04369565217 | AM51: 5.226 | AN51: 0.04544347826 | AO51: 5.427 | AP51: 0.04719130435 | AQ51: 5.628 | AR51: 0.04893913043 | AS51: 5.829 | AT51: 0.05068695652 | AU51: 6.03 | AV51: 0.05243478261 | AW51: 6.231 | AX51: 0.0541826087 | AY51: 6.432 | AZ51: 0.05593043478 | BA51: 6.633 | BB51: 0.05767826087 | BC51: 6.834 | BD51: 0.05942608696 | BE51: 7.035 | BF51: 0.06117391304 | BG51: 7.236 | BH51: 0.06292173913 | BI51: 7.437 | BJ51: 0.06466956522 | BK51: 7.638 | BL51: 0.0664173913 | BM51: 7.839 | BN51: 0.06816521739 | BO51: 8.04 | BP51: 0.06991304348 | BQ51: 8.241 | BR51: 0.07166086957 | BS51: 8.442 | BT51: 0.07340869565 | BU51: 8.643 | BV51: 0.07515652174 | BW51: 8.844 | BX51: 0.07690434783 | BY51: 9.045 | BZ51: 0.07865217391 | CA51: 9.246 | CB51: 0.0804 | CC51: 9.447 | CD51: 0.08214782609 | CE51: 9.648 | CF51: 0.08389565217 | CG51: 9.849 | CH51: 0.08564347826 | CI51: 10.05 | CJ51: 0.08739130435
U52: 4.1004 | V52: 0.03565565217 | W52: 4.3416 | X52: 0.03775304348 | Y52: 4.5828 | Z52: 0.03985043478 | AA52: 4.824 | AB52: 0.04194782609 | AC52: 5.0652 | AD52: 0.04404521739 | AE52: 5.3064 | AF52: 0.0461426087 | AG52: 5.5476 | AH52: 0.04824 | AI52: 5.7888 | AJ52: 0.0503373913 | AK52: 6.03 | AL52: 0.05243478261 | AM52: 6.2712 | AN52: 0.05453217391 | AO52: 6.5124 | AP52: 0.05662956522 | AQ52: 6.7536 | AR52: 0.05872695652 | AS52: 6.9948 | AT52: 0.06082434783 | AU52: 7.236 | AV52: 0.06292173913 | AW52: 7.4772 | AX52: 0.06501913043 | AY52: 7.7184 | AZ52: 0.06711652174 | BA52: 7.9596 | BB52: 0.06921391304 | BC52: 8.2008 | BD52: 0.07131130435 | BE52: 8.442 | BF52: 0.07340869565 | BG52: 8.6832 | BH52: 0.07550608696 | BI52: 8.9244 | BJ52: 0.07760347826 | BK52: 9.1656 | BL52: 0.07970086957 | BM52: 9.4068 | BN52: 0.08179826087 | BO52: 9.648 | BP52: 0.08389565217 | BQ52: 9.8892 | BR52: 0.08599304348 | BS52: 10.1304 | BT52: 0.08809043478 | BU52: 10.3716 | BV52: 0.09018782609 | BW52: 10.6128 | BX52: 0.09228521739 | BY52: 10.854 | BZ52: 0.0943826087 | CA52: 11.0952 | CB52: 0.09648 | CC52: 11.3364 | CD52: 0.0985773913 | CE52: 11.5776 | CF52: 0.1006747826 | CG52: 11.8188 | CH52: 0.1027721739 | CI52: 12.06 | CJ52: 0.1048695652
U53: 4.7838 | V53: 0.04159826087 | W53: 5.0652 | X53: 0.04404521739 | Y53: 5.3466 | Z53: 0.04649217391 | AA53: 5.628 | AB53: 0.04893913043 | AC53: 5.9094 | AD53: 0.05138608696 | AE53: 6.1908 | AF53: 0.05383304348 | AG53: 6.4722 | AH53: 0.05628 | AI53: 6.7536 | AJ53: 0.05872695652 | AK53: 7.035 | AL53: 0.06117391304 | AM53: 7.3164 | AN53: 0.06362086957 | AO53: 7.5978 | AP53: 0.06606782609 | AQ53: 7.8792 | AR53: 0.06851478261 | AS53: 8.1606 | AT53: 0.07096173913 | AU53: 8.442 | AV53: 0.07340869565 | AW53: 8.7234 | AX53: 0.07585565217 | AY53: 9.0048 | AZ53: 0.0783026087 | BA53: 9.2862 | BB53: 0.08074956522 | BC53: 9.5676 | BD53: 0.08319652174 | BE53: 9.849 | BF53: 0.08564347826 | BG53: 10.1304 | BH53: 0.08809043478 | BI53: 10.4118 | BJ53: 0.0905373913 | BK53: 10.6932 | BL53: 0.09298434783 | BM53: 10.9746 | BN53: 0.09543130435 | BO53: 11.256 | BP53: 0.09787826087 | BQ53: 11.5374 | BR53: 0.1003252174 | BS53: 11.8188 | BT53: 0.1027721739 | BU53: 12.1002 | BV53: 0.1052191304 | BW53: 12.3816 | BX53: 0.107666087 | BY53: 12.663 | BZ53: 0.1101130435 | CA53: 12.9444 | CB53: 0.11256 | CC53: 13.2258 | CD53: 0.1150069565 | CE53: 13.5072 | CF53: 0.117453913 | CG53: 13.7886 | CH53: 0.1199008696 | CI53: 14.07 | CJ53: 0.1223478261
U54: 5.4672 | V54: 0.04754086957 | W54: 5.7888 | X54: 0.0503373913 | Y54: 6.1104 | Z54: 0.05313391304 | AA54: 6.432 | AB54: 0.05593043478 | AC54: 6.7536 | AD54: 0.05872695652 | AE54: 7.0752 | AF54: 0.06152347826 | AG54: 7.3968 | AH54: 0.06432 | AI54: 7.7184 | AJ54: 0.06711652174 | AK54: 8.04 | AL54: 0.06991304348 | AM54: 8.3616 | AN54: 0.07270956522 | AO54: 8.6832 | AP54: 0.07550608696 | AQ54: 9.0048 | AR54: 0.0783026087 | AS54: 9.3264 | AT54: 0.08109913043 | AU54: 9.648 | AV54: 0.08389565217 | AW54: 9.9696 | AX54: 0.08669217391 | AY54: 10.2912 | AZ54: 0.08948869565 | BA54: 10.6128 | BB54: 0.09228521739 | BC54: 10.9344 | BD54: 0.09508173913 | BE54: 11.256 | BF54: 0.09787826087 | BG54: 11.5776 | BH54: 0.1006747826 | BI54: 11.8992 | BJ54: 0.1034713043 | BK54: 12.2208 | BL54: 0.1062678261 | BM54: 12.5424 | BN54: 0.1090643478 | BO54: 12.864 | BP54: 0.1118608696 | BQ54: 13.1856 | BR54: 0.1146573913 | BS54: 13.5072 | BT54: 0.117453913 | BU54: 13.8288 | BV54: 0.1202504348 | BW54: 14.1504 | BX54: 0.1230469565 | BY54: 14.472 | BZ54: 0.1258434783 | CA54: 14.7936 | CB54: 0.12864 | CC54: 15.1152 | CD54: 0.1314365217 | CE54: 15.4368 | CF54: 0.1342330435 | CG54: 15.7584 | CH54: 0.1370295652 | CI54: 16.08 | CJ54: 0.139826087
U55: 6.1506 | V55: 0.05348347826 | W55: 6.5124 | X55: 0.05662956522 | Y55: 6.8742 | Z55: 0.05977565217 | AA55: 7.236 | AB55: 0.06292173913 | AC55: 7.5978 | AD55: 0.06606782609 | AE55: 7.9596 | AF55: 0.06921391304 | AG55: 8.3214 | AH55: 0.07236 | AI55: 8.6832 | AJ55: 0.07550608696 | AK55: 9.045 | AL55: 0.07865217391 | AM55: 9.4068 | AN55: 0.08179826087 | AO55: 9.7686 | AP55: 0.08494434783 | AQ55: 10.1304 | AR55: 0.08809043478 | AS55: 10.4922 | AT55: 0.09123652174 | AU55: 10.854 | AV55: 0.0943826087 | AW55: 11.2158 | AX55: 0.09752869565 | AY55: 11.5776 | AZ55: 0.1006747826 | BA55: 11.9394 | BB55: 0.1038208696 | BC55: 12.3012 | BD55: 0.1069669565 | BE55: 12.663 | BF55: 0.1101130435 | BG55: 13.0248 | BH55: 0.1132591304 | BI55: 13.3866 | BJ55: 0.1164052174 | BK55: 13.7484 | BL55: 0.1195513043 | BM55: 14.1102 | BN55: 0.1226973913 | BO55: 14.472 | BP55: 0.1258434783 | BQ55: 14.8338 | BR55: 0.1289895652 | BS55: 15.1956 | BT55: 0.1321356522 | BU55: 15.5574 | BV55: 0.1352817391 | BW55: 15.9192 | BX55: 0.1384278261 | BY55: 16.281 | BZ55: 0.141573913 | CA55: 16.6428 | CB55: 0.14472 | CC55: 17.0046 | CD55: 0.147866087 | CE55: 17.3664 | CF55: 0.1510121739 | CG55: 17.7282 | CH55: 0.1541582609 | CI55: 18.09 | CJ55: 0.1573043478
U56: 6.834 | V56: 0.05942608696 | W56: 7.236 | X56: 0.06292173913 | Y56: 7.638 | Z56: 0.0664173913 | AA56: 8.04 | AB56: 0.06991304348 | AC56: 8.442 | AD56: 0.07340869565 | AE56: 8.844 | AF56: 0.07690434783 | AG56: 9.246 | AH56: 0.0804 | AI56: 9.648 | AJ56: 0.08389565217 | AK56: 10.05 | AL56: 0.08739130435 | AM56: 10.452 | AN56: 0.09088695652 | AO56: 10.854 | AP56: 0.0943826087 | AQ56: 11.256 | AR56: 0.09787826087 | AS56: 11.658 | AT56: 0.101373913 | AU56: 12.06 | AV56: 0.1048695652 | AW56: 12.462 | AX56: 0.1083652174 | AY56: 12.864 | AZ56: 0.1118608696 | BA56: 13.266 | BB56: 0.1153565217 | BC56: 13.668 | BD56: 0.1188521739 | BE56: 14.07 | BF56: 0.1223478261 | BG56: 14.472 | BH56: 0.1258434783 | BI56: 14.874 | BJ56: 0.1293391304 | BK56: 15.276 | BL56: 0.1328347826 | BM56: 15.678 | BN56: 0.1363304348 | BO56: 16.08 | BP56: 0.139826087 | BQ56: 16.482 | BR56: 0.1433217391 | BS56: 16.884 | BT56: 0.1468173913 | BU56: 17.286 | BV56: 0.1503130435 | BW56: 17.688 | BX56: 0.1538086957 | BY56: 18.09 | BZ56: 0.1573043478 | CA56: 18.492 | CB56: 0.1608 | CC56: 18.894 | CD56: 0.1642956522 | CE56: 19.296 | CF56: 0.1677913043 | CG56: 19.698 | CH56: 0.1712869565 | CI56: 20.1 | CJ56: 0.1747826087
U57: 7.5174 | V57: 0.06536869565 | W57: 7.9596 | X57: 0.06921391304 | Y57: 8.4018 | Z57: 0.07305913043 | AA57: 8.844 | AB57: 0.07690434783 | AC57: 9.2862 | AD57: 0.08074956522 | AE57: 9.7284 | AF57: 0.08459478261 | AG57: 10.1706 | AH57: 0.08844 | AI57: 10.6128 | AJ57: 0.09228521739 | AK57: 11.055 | AL57: 0.09613043478 | AM57: 11.4972 | AN57: 0.09997565217 | AO57: 11.9394 | AP57: 0.1038208696 | AQ57: 12.3816 | AR57: 0.107666087 | AS57: 12.8238 | AT57: 0.1115113043 | AU57: 13.266 | AV57: 0.1153565217 | AW57: 13.7082 | AX57: 0.1192017391 | AY57: 14.1504 | AZ57: 0.1230469565 | BA57: 14.5926 | BB57: 0.1268921739 | BC57: 15.0348 | BD57: 0.1307373913 | BE57: 15.477 | BF57: 0.1345826087 | BG57: 15.9192 | BH57: 0.1384278261 | BI57: 16.3614 | BJ57: 0.1422730435 | BK57: 16.8036 | BL57: 0.1461182609 | BM57: 17.2458 | BN57: 0.1499634783 | BO57: 17.688 | BP57: 0.1538086957 | BQ57: 18.1302 | BR57: 0.157653913 | BS57: 18.5724 | BT57: 0.1614991304 | BU57: 19.0146 | BV57: 0.1653443478 | BW57: 19.4568 | BX57: 0.1691895652 | BY57: 19.899 | BZ57: 0.1730347826 | CA57: 20.3412 | CB57: 0.17688 | CC57: 20.7834 | CD57: 0.1807252174 | CE57: 21.2256 | CF57: 0.1845704348 | CG57: 21.6678 | CH57: 0.1884156522 | CI57: 22.11 | CJ57: 0.1922608696
U58: 8.2008 | V58: 0.07131130435 | W58: 8.6832 | X58: 0.07550608696 | Y58: 9.1656 | Z58: 0.07970086957 | AA58: 9.648 | AB58: 0.08389565217 | AC58: 10.1304 | AD58: 0.08809043478 | AE58: 10.6128 | AF58: 0.09228521739 | AG58: 11.0952 | AH58: 0.09648 | AI58: 11.5776 | AJ58: 0.1006747826 | AK58: 12.06 | AL58: 0.1048695652 | AM58: 12.5424 | AN58: 0.1090643478 | AO58: 13.0248 | AP58: 0.1132591304 | AQ58: 13.5072 | AR58: 0.117453913 | AS58: 13.9896 | AT58: 0.1216486957 | AU58: 14.472 | AV58: 0.1258434783 | AW58: 14.9544 | AX58: 0.1300382609 | AY58: 15.4368 | AZ58: 0.1342330435 | BA58: 15.9192 | BB58: 0.1384278261 | BC58: 16.4016 | BD58: 0.1426226087 | BE58: 16.884 | BF58: 0.1468173913 | BG58: 17.3664 | BH58: 0.1510121739 | BI58: 17.8488 | BJ58: 0.1552069565 | BK58: 18.3312 | BL58: 0.1594017391 | BM58: 18.8136 | BN58: 0.1635965217 | BO58: 19.296 | BP58: 0.1677913043 | BQ58: 19.7784 | BR58: 0.171986087 | BS58: 20.2608 | BT58: 0.1761808696 | BU58: 20.7432 | BV58: 0.1803756522 | BW58: 21.2256 | BX58: 0.1845704348 | BY58: 21.708 | BZ58: 0.1887652174 | CA58: 22.1904 | CB58: 0.19296 | CC58: 22.6728 | CD58: 0.1971547826 | CE58: 23.1552 | CF58: 0.2013495652 | CG58: 23.6376 | CH58: 0.2055443478 | CI58: 24.12 | CJ58: 0.2097391304
U59: 8.8842 | V59: 0.07725391304 | W59: 9.4068 | X59: 0.08179826087 | Y59: 9.9294 | Z59: 0.0863426087 | AA59: 10.452 | AB59: 0.09088695652 | AC59: 10.9746 | AD59: 0.09543130435 | AE59: 11.4972 | AF59: 0.09997565217 | AG59: 12.0198 | AH59: 0.10452 | AI59: 12.5424 | AJ59: 0.1090643478 | AK59: 13.065 | AL59: 0.1136086957 | AM59: 13.5876 | AN59: 0.1181530435 | AO59: 14.1102 | AP59: 0.1226973913 | AQ59: 14.6328 | AR59: 0.1272417391 | AS59: 15.1554 | AT59: 0.131786087 | AU59: 15.678 | AV59: 0.1363304348 | AW59: 16.2006 | AX59: 0.1408747826 | AY59: 16.7232 | AZ59: 0.1454191304 | BA59: 17.2458 | BB59: 0.1499634783 | BC59: 17.7684 | BD59: 0.1545078261 | BE59: 18.291 | BF59: 0.1590521739 | BG59: 18.8136 | BH59: 0.1635965217 | BI59: 19.3362 | BJ59: 0.1681408696 | BK59: 19.8588 | BL59: 0.1726852174 | BM59: 20.3814 | BN59: 0.1772295652 | BO59: 20.904 | BP59: 0.181773913 | BQ59: 21.4266 | BR59: 0.1863182609 | BS59: 21.9492 | BT59: 0.1908626087 | BU59: 22.4718 | BV59: 0.1954069565 | BW59: 22.9944 | BX59: 0.1999513043 | BY59: 23.517 | BZ59: 0.2044956522 | CA59: 24.0396 | CB59: 0.20904 | CC59: 24.5622 | CD59: 0.2135843478 | CE59: 25.0848 | CF59: 0.2181286957 | CG59: 25.6074 | CH59: 0.2226730435 | CI59: 26.13 | CJ59: 0.2272173913
U60: 9.5676 | V60: 0.08319652174 | W60: 10.1304 | X60: 0.08809043478 | Y60: 10.6932 | Z60: 0.09298434783 | AA60: 11.256 | AB60: 0.09787826087 | AC60: 11.8188 | AD60: 0.1027721739 | AE60: 12.3816 | AF60: 0.107666087 | AG60: 12.9444 | AH60: 0.11256 | AI60: 13.5072 | AJ60: 0.117453913 | AK60: 14.07 | AL60: 0.1223478261 | AM60: 14.6328 | AN60: 0.1272417391 | AO60: 15.1956 | AP60: 0.1321356522 | AQ60: 15.7584 | AR60: 0.1370295652 | AS60: 16.3212 | AT60: 0.1419234783 | AU60: 16.884 | AV60: 0.1468173913 | AW60: 17.4468 | AX60: 0.1517113043 | AY60: 18.0096 | AZ60: 0.1566052174 | BA60: 18.5724 | BB60: 0.1614991304 | BC60: 19.1352 | BD60: 0.1663930435 | BE60: 19.698 | BF60: 0.1712869565 | BG60: 20.2608 | BH60: 0.1761808696 | BI60: 20.8236 | BJ60: 0.1810747826 | BK60: 21.3864 | BL60: 0.1859686957 | BM60: 21.9492 | BN60: 0.1908626087 | BO60: 22.512 | BP60: 0.1957565217 | BQ60: 23.0748 | BR60: 0.2006504348 | BS60: 23.6376 | BT60: 0.2055443478 | BU60: 24.2004 | BV60: 0.2104382609 | BW60: 24.7632 | BX60: 0.2153321739 | BY60: 25.326 | BZ60: 0.220226087 | CA60: 25.8888 | CB60: 0.22512 | CC60: 26.4516 | CD60: 0.230013913 | CE60: 27.0144 | CF60: 0.2349078261 | CG60: 27.5772 | CH60: 0.2398017391 | CI60: 28.14 | CJ60: 0.2446956522
U61: 10.251 | V61: 0.08913913043 | W61: 10.854 | X61: 0.0943826087 | Y61: 11.457 | Z61: 0.09962608696 | AA61: 12.06 | AB61: 0.1048695652 | AC61: 12.663 | AD61: 0.1101130435 | AE61: 13.266 | AF61: 0.1153565217 | AG61: 13.869 | AH61: 0.1206 | AI61: 14.472 | AJ61: 0.1258434783 | AK61: 15.075 | AL61: 0.1310869565 | AM61: 15.678 | AN61: 0.1363304348 | AO61: 16.281 | AP61: 0.141573913 | AQ61: 16.884 | AR61: 0.1468173913 | AS61: 17.487 | AT61: 0.1520608696 | AU61: 18.09 | AV61: 0.1573043478 | AW61: 18.693 | AX61: 0.1625478261 | AY61: 19.296 | AZ61: 0.1677913043 | BA61: 19.899 | BB61: 0.1730347826 | BC61: 20.502 | BD61: 0.1782782609 | BE61: 21.105 | BF61: 0.1835217391 | BG61: 21.708 | BH61: 0.1887652174 | BI61: 22.311 | BJ61: 0.1940086957 | BK61: 22.914 | BL61: 0.1992521739 | BM61: 23.517 | BN61: 0.2044956522 | BO61: 24.12 | BP61: 0.2097391304 | BQ61: 24.723 | BR61: 0.2149826087 | BS61: 25.326 | BT61: 0.220226087 | BU61: 25.929 | BV61: 0.2254695652 | BW61: 26.532 | BX61: 0.2307130435 | BY61: 27.135 | BZ61: 0.2359565217 | CA61: 27.738 | CB61: 0.2412 | CC61: 28.341 | CD61: 0.2464434783 | CE61: 28.944 | CF61: 0.2516869565 | CG61: 29.547 | CH61: 0.2569304348 | CI61: 30.15 | CJ61: 0.262173913
U62: 10.9344 | V62: 0.09508173913 | W62: 11.5776 | X62: 0.1006747826 | Y62: 12.2208 | Z62: 0.1062678261 | AA62: 12.864 | AB62: 0.1118608696 | AC62: 13.5072 | AD62: 0.117453913 | AE62: 14.1504 | AF62: 0.1230469565 | AG62: 14.7936 | AH62: 0.12864 | AI62: 15.4368 | AJ62: 0.1342330435 | AK62: 16.08 | AL62: 0.139826087 | AM62: 16.7232 | AN62: 0.1454191304 | AO62: 17.3664 | AP62: 0.1510121739 | AQ62: 18.0096 | AR62: 0.1566052174 | AS62: 18.6528 | AT62: 0.1621982609 | AU62: 19.296 | AV62: 0.1677913043 | AW62: 19.9392 | AX62: 0.1733843478 | AY62: 20.5824 | AZ62: 0.1789773913 | BA62: 21.2256 | BB62: 0.1845704348 | BC62: 21.8688 | BD62: 0.1901634783 | BE62: 22.512 | BF62: 0.1957565217 | BG62: 23.1552 | BH62: 0.2013495652 | BI62: 23.7984 | BJ62: 0.2069426087 | BK62: 24.4416 | BL62: 0.2125356522 | BM62: 25.0848 | BN62: 0.2181286957 | BO62: 25.728 | BP62: 0.2237217391 | BQ62: 26.3712 | BR62: 0.2293147826 | BS62: 27.0144 | BT62: 0.2349078261 | BU62: 27.6576 | BV62: 0.2405008696 | BW62: 28.3008 | BX62: 0.246093913 | BY62: 28.944 | BZ62: 0.2516869565 | CA62: 29.5872 | CB62: 0.25728 | CC62: 30.2304 | CD62: 0.2628730435 | CE62: 30.8736 | CF62: 0.268466087 | CG62: 31.5168 | CH62: 0.2740591304 | CI62: 32.16 | CJ62: 0.2796521739
U63: 11.6178 | V63: 0.1010243478 | W63: 12.3012 | X63: 0.1069669565 | Y63: 12.9846 | Z63: 0.1129095652 | AA63: 13.668 | AB63: 0.1188521739 | AC63: 14.3514 | AD63: 0.1247947826 | AE63: 15.0348 | AF63: 0.1307373913 | AG63: 15.7182 | AH63: 0.13668 | AI63: 16.4016 | AJ63: 0.1426226087 | AK63: 17.085 | AL63: 0.1485652174 | AM63: 17.7684 | AN63: 0.1545078261 | AO63: 18.4518 | AP63: 0.1604504348 | AQ63: 19.1352 | AR63: 0.1663930435 | AS63: 19.8186 | AT63: 0.1723356522 | AU63: 20.502 | AV63: 0.1782782609 | AW63: 21.1854 | AX63: 0.1842208696 | AY63: 21.8688 | AZ63: 0.1901634783 | BA63: 22.5522 | BB63: 0.196106087 | BC63: 23.2356 | BD63: 0.2020486957 | BE63: 23.919 | BF63: 0.2079913043 | BG63: 24.6024 | BH63: 0.213933913 | BI63: 25.2858 | BJ63: 0.2198765217 | BK63: 25.9692 | BL63: 0.2258191304 | BM63: 26.6526 | BN63: 0.2317617391 | BO63: 27.336 | BP63: 0.2377043478 | BQ63: 28.0194 | BR63: 0.2436469565 | BS63: 28.7028 | BT63: 0.2495895652 | BU63: 29.3862 | BV63: 0.2555321739 | BW63: 30.0696 | BX63: 0.2614747826 | BY63: 30.753 | BZ63: 0.2674173913 | CA63: 31.4364 | CB63: 0.27336 | CC63: 32.1198 | CD63: 0.2793026087 | CE63: 32.8032 | CF63: 0.2852452174 | CG63: 33.4866 | CH63: 0.2911878261 | CI63: 34.17 | CJ63: 0.2971304348
U64: 12.3012 | V64: 0.1069669565 | W64: 13.0248 | X64: 0.1132591304 | Y64: 13.7484 | Z64: 0.1195513043 | AA64: 14.472 | AB64: 0.1258434783 | AC64: 15.1956 | AD64: 0.1321356522 | AE64: 15.9192 | AF64: 0.1384278261 | AG64: 16.6428 | AH64: 0.14472 | AI64: 17.3664 | AJ64: 0.1510121739 | AK64: 18.09 | AL64: 0.1573043478 | AM64: 18.8136 | AN64: 0.1635965217 | AO64: 19.5372 | AP64: 0.1698886957 | AQ64: 20.2608 | AR64: 0.1761808696 | AS64: 20.9844 | AT64: 0.1824730435 | AU64: 21.708 | AV64: 0.1887652174 | AW64: 22.4316 | AX64: 0.1950573913 | AY64: 23.1552 | AZ64: 0.2013495652 | BA64: 23.8788 | BB64: 0.2076417391 | BC64: 24.6024 | BD64: 0.213933913 | BE64: 25.326 | BF64: 0.220226087 | BG64: 26.0496 | BH64: 0.2265182609 | BI64: 26.7732 | BJ64: 0.2328104348 | BK64: 27.4968 | BL64: 0.2391026087 | BM64: 28.2204 | BN64: 0.2453947826 | BO64: 28.944 | BP64: 0.2516869565 | BQ64: 29.6676 | BR64: 0.2579791304 | BS64: 30.3912 | BT64: 0.2642713043 | BU64: 31.1148 | BV64: 0.2705634783 | BW64: 31.8384 | BX64: 0.2768556522 | BY64: 32.562 | BZ64: 0.2831478261 | CA64: 33.2856 | CB64: 0.28944 | CC64: 34.0092 | CD64: 0.2957321739 | CE64: 34.7328 | CF64: 0.3020243478 | CG64: 35.4564 | CH64: 0.3083165217 | CI64: 36.18 | CJ64: 0.3146086957
U65: 12.9846 | V65: 0.1129095652 | W65: 13.7484 | X65: 0.1195513043 | Y65: 14.5122 | Z65: 0.1261930435 | AA65: 15.276 | AB65: 0.1328347826 | AC65: 16.0398 | AD65: 0.1394765217 | AE65: 16.8036 | AF65: 0.1461182609 | AG65: 17.5674 | AH65: 0.15276 | AI65: 18.3312 | AJ65: 0.1594017391 | AK65: 19.095 | AL65: 0.1660434783 | AM65: 19.8588 | AN65: 0.1726852174 | AO65: 20.6226 | AP65: 0.1793269565 | AQ65: 21.3864 | AR65: 0.1859686957 | AS65: 22.1502 | AT65: 0.1926104348 | AU65: 22.914 | AV65: 0.1992521739 | AW65: 23.6778 | AX65: 0.205893913 | AY65: 24.4416 | AZ65: 0.2125356522 | BA65: 25.2054 | BB65: 0.2191773913 | BC65: 25.9692 | BD65: 0.2258191304 | BE65: 26.733 | BF65: 0.2324608696 | BG65: 27.4968 | BH65: 0.2391026087 | BI65: 28.2606 | BJ65: 0.2457443478 | BK65: 29.0244 | BL65: 0.252386087 | BM65: 29.7882 | BN65: 0.2590278261 | BO65: 30.552 | BP65: 0.2656695652 | BQ65: 31.3158 | BR65: 0.2723113043 | BS65: 32.0796 | BT65: 0.2789530435 | BU65: 32.8434 | BV65: 0.2855947826 | BW65: 33.6072 | BX65: 0.2922365217 | BY65: 34.371 | BZ65: 0.2988782609 | CA65: 35.1348 | CB65: 0.30552 | CC65: 35.8986 | CD65: 0.3121617391 | CE65: 36.6624 | CF65: 0.3188034783 | CG65: 37.4262 | CH65: 0.3254452174 | CI65: 38.19 | CJ65: 0.3320869565
U66: 13.668 | V66: 0.1188521739 | W66: 14.472 | X66: 0.1258434783 | Y66: 15.276 | Z66: 0.1328347826 | AA66: 16.08 | AB66: 0.139826087 | AC66: 16.884 | AD66: 0.1468173913 | AE66: 17.688 | AF66: 0.1538086957 | AG66: 18.492 | AH66: 0.1608 | AI66: 19.296 | AJ66: 0.1677913043 | AK66: 20.1 | AL66: 0.1747826087 | AM66: 20.904 | AN66: 0.181773913 | AO66: 21.708 | AP66: 0.1887652174 | AQ66: 22.512 | AR66: 0.1957565217 | AS66: 23.316 | AT66: 0.2027478261 | AU66: 24.12 | AV66: 0.2097391304 | AW66: 24.924 | AX66: 0.2167304348 | AY66: 25.728 | AZ66: 0.2237217391 | BA66: 26.532 | BB66: 0.2307130435 | BC66: 27.336 | BD66: 0.2377043478 | BE66: 28.14 | BF66: 0.2446956522 | BG66: 28.944 | BH66: 0.2516869565 | BI66: 29.748 | BJ66: 0.2586782609 | BK66: 30.552 | BL66: 0.2656695652 | BM66: 31.356 | BN66: 0.2726608696 | BO66: 32.16 | BP66: 0.2796521739 | BQ66: 32.964 | BR66: 0.2866434783 | BS66: 33.768 | BT66: 0.2936347826 | BU66: 34.572 | BV66: 0.300626087 | BW66: 35.376 | BX66: 0.3076173913 | BY66: 36.18 | BZ66: 0.3146086957 | CA66: 36.984 | CB66: 0.3216 | CC66: 37.788 | CD66: 0.3285913043 | CE66: 38.592 | CF66: 0.3355826087 | CG66: 39.396 | CH66: 0.342573913 | CI66: 40.2 | CJ66: 0.3495652174
U69: =2*C$12*$C$7*$B14 -> 0.201 | V69: =2*D$12*$C$7*$B14 -> 0.3015 | W69: =2*E$12*$C$7*$B14 -> 0.402 | X69: =2*F$12*$C$7*$B14 -> 0.5025 | Y69: =2*G$12*$C$7*$B14 -> 0.603 | Z69: =2*H$12*$C$7*$B14 -> 0.7035 | AA69: =2*I$12*$C$7*$B14 -> 0.804 | AB69: =2*J$12*$C$7*$B14 -> 1.005 | AC69: =2*K$12*$C$7*$B14 -> 1.206 | AD69: =2*L$12*$C$7*$B14 -> 1.407 | AE69: =2*M$12*$C$7*$B14 -> 1.608 | AF69: =2*N$12*$C$7*$B14 -> 1.809
U70: 0.402 | V70: 0.603 | W70: 0.804 | X70: 1.005 | Y70: 1.206 | Z70: 1.407 | AA70: 1.608 | AB70: 2.01 | AC70: 2.412 | AD70: 2.814 | AE70: 3.216 | AF70: 3.618
U71: 0.603 | V71: 0.9045 | W71: 1.206 | X71: 1.5075 | Y71: 1.809 | Z71: 2.1105 | AA71: 2.412 | AB71: 3.015 | AC71: 3.618 | AD71: 4.221 | AE71: 4.824 | AF71: 5.427
U72: 0.804 | V72: 1.206 | W72: 1.608 | X72: 2.01 | Y72: 2.412 | Z72: 2.814 | AA72: 3.216 | AB72: 4.02 | AC72: 4.824 | AD72: 5.628 | AE72: 6.432 | AF72: 7.236
U73: 1.005 | V73: 1.5075 | W73: 2.01 | X73: 2.5125 | Y73: 3.015 | Z73: 3.5175 | AA73: 4.02 | AB73: 5.025 | AC73: 6.03 | AD73: 7.035 | AE73: 8.04 | AF73: 9.045
U74: 1.206 | V74: 1.809 | W74: 2.412 | X74: 3.015 | Y74: 3.618 | Z74: 4.221 | AA74: 4.824 | AB74: 6.03 | AC74: 7.236 | AD74: 8.442 | AE74: 9.648 | AF74: 10.854
U75: 1.407 | V75: 2.1105 | W75: 2.814 | X75: 3.5175 | Y75: 4.221 | Z75: 4.9245 | AA75: 5.628 | AB75: 7.035 | AC75: 8.442 | AD75: 9.849 | AE75: 11.256 | AF75: 12.663
U76: 1.608 | V76: 2.412 | W76: 3.216 | X76: 4.02 | Y76: 4.824 | Z76: 5.628 | AA76: 6.432 | AB76: 8.04 | AC76: 9.648 | AD76: 11.256 | AE76: 12.864 | AF76: 14.472
U77: 1.809 | V77: 2.7135 | W77: 3.618 | X77: 4.5225 | Y77: 5.427 | Z77: 6.3315 | AA77: 7.236 | AB77: 9.045 | AC77: 10.854 | AD77: 12.663 | AE77: 14.472 | AF77: 16.281
U78: 2.01 | V78: 3.015 | W78: 4.02 | X78: 5.025 | Y78: 6.03 | Z78: 7.035 | AA78: 8.04 | AB78: 10.05 | AC78: 12.06 | AD78: 14.07 | AE78: 16.08 | AF78: 18.09
U79: 2.211 | V79: 3.3165 | W79: 4.422 | X79: 5.5275 | Y79: 6.633 | Z79: 7.7385 | AA79: 8.844 | AB79: 11.055 | AC79: 13.266 | AD79: 15.477 | AE79: 17.688 | AF79: 19.899
U80: 2.412 | V80: 3.618 | W80: 4.824 | X80: 6.03 | Y80: 7.236 | Z80: 8.442 | AA80: 9.648 | AB80: 12.06 | AC80: 14.472 | AD80: 16.884 | AE80: 19.296 | AF80: 21.708
U81: 2.613 | V81: 3.9195 | W81: 5.226 | X81: 6.5325 | Y81: 7.839 | Z81: 9.1455 | AA81: 10.452 | AB81: 13.065 | AC81: 15.678 | AD81: 18.291 | AE81: 20.904 | AF81: 23.517
U82: 2.814 | V82: 4.221 | W82: 5.628 | X82: 7.035 | Y82: 8.442 | Z82: 9.849 | AA82: 11.256 | AB82: 14.07 | AC82: 16.884 | AD82: 19.698 | AE82: 22.512 | AF82: 25.326
U83: 3.015 | V83: 4.5225 | W83: 6.03 | X83: 7.5375 | Y83: 9.045 | Z83: 10.5525 | AA83: 12.06 | AB83: 15.075 | AC83: 18.09 | AD83: 21.105 | AE83: 24.12 | AF83: 27.135
U84: 3.216 | V84: 4.824 | W84: 6.432 | X84: 8.04 | Y84: 9.648 | Z84: 11.256 | AA84: 12.864 | AB84: 16.08 | AC84: 19.296 | AD84: 22.512 | AE84: 25.728 | AF84: 28.944
U85: 3.417 | V85: 5.1255 | W85: 6.834 | X85: 8.5425 | Y85: 10.251 | Z85: 11.9595 | AA85: 13.668 | AB85: 17.085 | AC85: 20.502 | AD85: 23.919 | AE85: 27.336 | AF85: 30.753
U86: 3.618 | V86: 5.427 | W86: 7.236 | X86: 9.045 | Y86: 10.854 | Z86: 12.663 | AA86: 14.472 | AB86: 18.09 | AC86: 21.708 | AD86: 25.326 | AE86: 28.944 | AF86: 32.562
U87: 3.819 | V87: 5.7285 | W87: 7.638 | X87: 9.5475 | Y87: 11.457 | Z87: 13.3665 | AA87: 15.276 | AB87: 19.095 | AC87: 22.914 | AD87: 26.733 | AE87: 30.552 | AF87: 34.371
U88: 4.02 | V88: 6.03 | W88: 8.04 | X88: 10.05 | Y88: 12.06 | Z88: 14.07 | AA88: 16.08 | AB88: 20.1 | AC88: 24.12 | AD88: 28.14 | AE88: 32.16 | AF88: 36.18

Sheet Sheet2
C2: Wire size
C4: Wire length in feet one way
B5: Amps | C5: 50 | D5: 70 | E5: 90 | F5: 110 | G5: 130 | H5: 150 | I5: 170 | J5: 190 | K5: 210 | L5: 230 | M5: 250 | N5: 270 | O5: 290 | P5: 310 | Q5: 330 | R5: 350 | S5: 370 | T5: 390 | U5: 410 | V5: 430 | W5: 450 | X5: 470 | Y5: 490
B6: 1 | C6: =Sheet1!C14 -> 0.001747826087 | D6: =($E6/$C$15) -> 0
B7: 2 | C7: =Sheet1!C15 -> 0.003495652174 | D7: =($E7/$C$15) -> 0
B8: 3 | C8: =Sheet1!C16 -> 0.005243478261 | D8: 0
B9: 4 | C9: =($C9/$C$15) -> 0.4545454545 | D9: 0
B10: 5 | C10: 0.5454545455 | D10: 0
B11: 6 | C11: 0.6363636364 | D11: 0
B12: 7 | C12: 0.7272727273 | D12: 0
B13: 8 | C13: 0.8181818182 | D13: 0
B14: 9 | C14: 0.9090909091 | D14: 0
B15: 10 | C15: 1 | D15: 0
B16: 11 | C16: 0.01048695652 | D16: 0
B17: 12 | C17: 0.01136086957 | D17: 0
B18: 13 | C18: 0.01223478261 | D18: 0
B19: 14 | C19: 0.01310869565 | D19: 0
B20: 15 | C20: 0.0139826087 | D20: 0
B21: 16 | C21: 0.01485652174 | D21: 0
B22: 17 | C22: 0.01573043478 | D22: 0
B23: 18 | C23: 0.01660434783 | D23: 0
B24: 19 | C24: 0.01747826087 | D24: 0
B25: 20 | D25: 0
